[Event "Titled Tuesday Blitz March 15 Early 2022"]
[White "Martic, Ivan"]
[Black "Tanenbaum, Zachary"]
[WhiteFideId "929301"]
[BlackFideId "2060850"]
[WhiteElo "2317"]
[BlackElo "2168"]
[Result "0-1"]
[Round "05"]
[TimeControl "180+1"]
[Date "2022.03.15"]
[WhiteClock "0:01:41"]
[BlackClock "0:00:23"]

1. e4 {[%clk 0:02:44]}  e5 {[%clk 0:02:59]} 2. Nf3 {[%clk 0:02:44]}  Nc6 {[%clk 0:02:59]} 3. Bb5 {[%clk 0:02:44]}  a6 {[%clk 0:02:59]} 4. Ba4 {[%clk 0:02:44]}  d6 {[%clk 0:03:00]} 5. O-O {[%clk 0:02:43]}  Nf6 {[%clk 0:03:00]} 6. d3 {[%clk 0:02:41]}  b5 {[%clk 0:02:59]} 7. Bb3 {[%clk 0:02:41]}  Na5 {[%clk 0:03:00]} 8. c3 {[%clk 0:02:38]}  Nxb3 {[%clk 0:03:00]} 9. axb3 {[%clk 0:02:39]}  Be7 {[%clk 0:03:00]} 10. b4 {[%clk 0:02:39]}  O-O {[%clk 0:02:59]} 11. Nbd2 {[%clk 0:02:39]}  Bb7 {[%clk 0:02:54]} 12. Re1 {[%clk 0:02:39]}  Nd7 {[%clk 0:02:53]} 13. Nb3 {[%clk 0:02:38]}  Rb8 {[%clk 0:02:51]} 14. g4 {[%clk 0:02:29]}  d5 {[%clk 0:02:41]} 15. Na5 {[%clk 0:02:25]}  Ba8 {[%clk 0:02:41]} 16. exd5 {[%clk 0:02:24]}  Bxd5 {[%clk 0:02:35]} 17. Nxe5 {[%clk 0:02:25]}  Bd6 {[%clk 0:02:30]} 18. Nac6 {[%clk 0:02:16]}  Qh4 {[%clk 0:02:14]} 19. f4 {[%clk 0:02:03]}  Rbe8 {[%clk 0:01:42]} 20. Bd2 {[%clk 0:02:00]}  Qh3 {[%clk 0:01:13]} 21. Re2 {[%clk 0:01:58]}  Nxe5 {[%clk 0:01:03]} 22. Nxe5 {[%clk 0:01:57]}  f6 {[%clk 0:01:00]} 23. c4 {[%clk 0:01:54]}  Bb7 {[%clk 0:00:33]} 24. c5 {[%clk 0:01:43]}  fxe5 {[%clk 0:00:31]} 25. cxd6 {[%clk 0:01:42]}  Qxg4+ {[%clk 0:00:25]} 26. Kf1 {[%clk 0:01:42]}  Qf3+ {[%clk 0:00:23]} 27. Rf2 {[%clk 0:01:41]}  Qh1+ {[%clk 0:00:22]} 28. Ke2 {[%clk 0:01:41]}  exf4+ {[%clk 0:00:23]} 0-1


[Site "https://www.chess.com"]

[Event "Titled Tuesday Blitz March 15 Early 2022"]
[White "Migot, Tangi"]
[Black "Popadic, Dragan"]
[WhiteFideId "662445"]
[BlackFideId "913650"]
[WhiteElo "2518"]
[BlackElo "2222"]
[Result "0-1"]
[Round "05"]
[TimeControl "180+1"]
[Date "2022.03.15"]
[WhiteClock "0:00:04"]
[BlackClock "0:00:19"]

1. e4 {[%clk 0:02:49]}  c5 {[%clk 0:02:58]} 2. Nf3 {[%clk 0:02:49]}  Nc6 {[%clk 0:02:58]} 3. g3 {[%clk 0:02:50]}  g6 {[%clk 0:02:56]} 4. Bg2 {[%clk 0:02:50]}  Bg7 {[%clk 0:02:56]} 5. O-O {[%clk 0:02:50]}  d6 {[%clk 0:02:57]} 6. Nc3 {[%clk 0:02:50]}  Nf6 {[%clk 0:02:56]} 7. Rb1 {[%clk 0:02:49]}  O-O {[%clk 0:02:56]} 8. a3 {[%clk 0:02:49]}  h6 {[%clk 0:02:48]} 9. b4 {[%clk 0:02:49]}  cxb4 {[%clk 0:02:47]} 10. axb4 {[%clk 0:02:49]}  Be6 {[%clk 0:02:38]} 11. b5 {[%clk 0:02:39]}  Ne5 {[%clk 0:02:37]} 12. Nd4 {[%clk 0:02:36]}  Bc8 {[%clk 0:02:35]} 13. d3 {[%clk 0:02:33]}  Rb8 {[%clk 0:02:26]} 14. h3 {[%clk 0:02:25]}  e6 {[%clk 0:02:20]} 15. f4 {[%clk 0:02:24]}  Ned7 {[%clk 0:02:19]} 16. Be3 {[%clk 0:02:23]}  Qe7 {[%clk 0:02:16]} 17. Ra1 {[%clk 0:02:17]}  Ra8 {[%clk 0:02:12]} 18. Ra2 {[%clk 0:02:13]}  e5 {[%clk 0:02:11]} 19. Nde2 {[%clk 0:02:10]}  b6 {[%clk 0:02:03]} 20. f5 {[%clk 0:02:09]}  Nc5 {[%clk 0:02:02]} 21. g4 {[%clk 0:02:06]}  Bb7 {[%clk 0:01:54]} 22. Ng3 {[%clk 0:01:59]}  a5 {[%clk 0:01:47]} 23. bxa6 {[%clk 0:01:55]}  Rxa6 {[%clk 0:01:47]} 24. Rxa6 {[%clk 0:01:53]}  Bxa6 {[%clk 0:01:47]} 25. Qd2 {[%clk 0:01:27]}  Kh7 {[%clk 0:01:45]} 26. g5 {[%clk 0:01:27]}  hxg5 {[%clk 0:01:43]} 27. Bxg5 {[%clk 0:01:27]}  Qe8 {[%clk 0:01:28]} 28. Bxf6 {[%clk 0:00:52]}  Bxf6 {[%clk 0:01:28]} 29. Nd5 {[%clk 0:00:52]}  Bg7 {[%clk 0:01:23]} 30. f6 {[%clk 0:00:38]}  Bh6 {[%clk 0:01:22]} 31. Qb4 {[%clk 0:00:38]}  b5 {[%clk 0:01:16]} 32. Ra1 {[%clk 0:00:27]}  Qc6 {[%clk 0:01:11]} 33. Nf1 {[%clk 0:00:20]}  Nd7 {[%clk 0:01:02]} 34. Qb3 {[%clk 0:00:14]}  Bb7 {[%clk 0:00:53]} 35. Kh1 {[%clk 0:00:14]}  Nb6 {[%clk 0:00:49]} 36. Nfe3 {[%clk 0:00:12]}  Nxd5 {[%clk 0:00:48]} 37. Nxd5 {[%clk 0:00:12]}  Qd7 {[%clk 0:00:44]} 38. Ra7 {[%clk 0:00:11]}  Qc6 {[%clk 0:00:40]} 39. Ne7 {[%clk 0:00:11]}  Qb6 {[%clk 0:00:38]} 40. Qa3 {[%clk 0:00:11]}  d5 {[%clk 0:00:32]} 41. Nxd5 {[%clk 0:00:09]}  Bxd5 {[%clk 0:00:32]} 42. exd5 {[%clk 0:00:07]}  Qxf6 {[%clk 0:00:32]} 43. Qa1 {[%clk 0:00:06]}  Bf4 {[%clk 0:00:29]} 44. d6 {[%clk 0:00:04]}  Qxd6 {[%clk 0:00:27]} 45. Qf1 {[%clk 0:00:04]}  Qb6 {[%clk 0:00:25]} 46. Rd7 {[%clk 0:00:03]}  Qe3 {[%clk 0:00:25]} 47. Be4 {[%clk 0:00:02]}  Qg3 {[%clk 0:00:24]} 48. Qg2 {[%clk 0:00:03]}  Qe1+ {[%clk 0:00:24]} 49. Qg1 {[%clk 0:00:03]}  Qe3 {[%clk 0:00:23]} 50. Qxe3 {[%clk 0:00:03]}  Bxe3 {[%clk 0:00:23]} 51. Rb7 {[%clk 0:00:03]}  Kg7 {[%clk 0:00:21]} 52. Rxb5 {[%clk 0:00:03]}  Rc8 {[%clk 0:00:21]} 53. c4 {[%clk 0:00:03]}  Bd4 {[%clk 0:00:20]} 54. Rb7 {[%clk 0:00:04]}  Rc5 {[%clk 0:00:19]} 55. Bd5 {[%clk 0:00:04]}  Ra5 {[%clk 0:00:19]} 56. Rxf7+ {[%clk 0:00:04]}  Kh6 {[%clk 0:00:19]} 0-1


[Site "https://www.chess.com"]

[Event "Titled Tuesday Blitz March 15 Early 2022"]
[White "Mitusov, Semen"]
[Black "Gareyev, Timur"]
[WhiteFideId "14151049"]
[BlackFideId "14200937"]
[WhiteElo "2265"]
[BlackElo "2582"]
[Result "0-1"]
[Round "05"]
[TimeControl "180+1"]
[Date "2022.03.15"]
[WhiteClock "0:00:01"]
[BlackClock "0:00:40"]

1. e4 {[%clk 0:03:00]}  c5 {[%clk 0:02:55]} 2. c3 {[%clk 0:03:00]}  Nf6 {[%clk 0:02:53]} 3. e5 {[%clk 0:03:00]}  Nd5 {[%clk 0:02:52]} 4. d4 {[%clk 0:03:01]}  cxd4 {[%clk 0:02:52]} 5. Nf3 {[%clk 0:03:01]}  e6 {[%clk 0:02:49]} 6. cxd4 {[%clk 0:03:01]}  b6 {[%clk 0:02:33]} 7. a3 {[%clk 0:02:59]}  Bb7 {[%clk 0:02:28]} 8. Bd3 {[%clk 0:02:55]}  d6 {[%clk 0:02:21]} 9. O-O {[%clk 0:02:50]}  Nd7 {[%clk 0:02:12]} 10. Nbd2 {[%clk 0:02:43]}  Nf4 {[%clk 0:02:04]} 11. Bb1 {[%clk 0:02:41]}  dxe5 {[%clk 0:02:01]} 12. Nc4 {[%clk 0:02:24]}  b5 {[%clk 0:01:49]} 13. dxe5 {[%clk 0:02:13]}  Nxg2 {[%clk 0:01:47]} 14. Bg5 {[%clk 0:01:45]}  Qc8 {[%clk 0:01:28]} 15. Nd6+ {[%clk 0:01:34]}  Bxd6 {[%clk 0:01:28]} 16. Qxd6 {[%clk 0:01:34]}  Qc5 {[%clk 0:01:29]} 17. Qxc5 {[%clk 0:01:27]}  Nxc5 {[%clk 0:01:28]} 18. Kxg2 {[%clk 0:01:28]}  Nb3 {[%clk 0:01:27]} 19. Ra2 {[%clk 0:01:24]}  Nd4 {[%clk 0:01:25]} 20. Be3 {[%clk 0:00:50]}  Nxf3 {[%clk 0:01:21]} 21. Kg3 {[%clk 0:00:50]}  Nxe5 {[%clk 0:01:20]} 22. Bc5 {[%clk 0:00:34]}  h5 {[%clk 0:01:14]} 23. b4 {[%clk 0:00:23]}  h4+ {[%clk 0:01:13]} 24. Kf4 {[%clk 0:00:23]}  Rh5 {[%clk 0:01:08]} 25. Rd1 {[%clk 0:00:23]}  Bd5 {[%clk 0:01:03]} 26. Rad2 {[%clk 0:00:18]}  Nc4 {[%clk 0:01:03]} 27. Re2 {[%clk 0:00:18]}  Kd7 {[%clk 0:00:52]} 28. Kg4 {[%clk 0:00:16]}  Rah8 {[%clk 0:00:46]} 29. Bc2 {[%clk 0:00:08]}  f5+ {[%clk 0:00:43]} 30. Kh3 {[%clk 0:00:03]}  Kc6 {[%clk 0:00:41]} 31. f4 {[%clk 0:00:01]}  g5 {[%clk 0:00:40]} 0-1


[Site "https://www.chess.com"]

[Event "Titled Tuesday Blitz March 15 Early 2022"]
[White "Nikulina, Alena"]
[Black "Baches Garcia, Guillermo"]
[WhiteFideId "4172051"]
[BlackFideId "2209764"]
[WhiteElo "1778"]
[BlackElo "2428"]
[Result "0-1"]
[Round "05"]
[TimeControl "180+1"]
[Date "2022.03.15"]
[WhiteClock "0:00:03"]
[BlackClock "0:00:18"]

1. e4 {[%clk 0:03:00]}  c5 {[%clk 0:02:59]} 2. Nf3 {[%clk 0:02:59]}  d6 {[%clk 0:03:00]} 3. d4 {[%clk 0:02:58]}  cxd4 {[%clk 0:03:01]} 4. Nxd4 {[%clk 0:02:58]}  Nf6 {[%clk 0:03:01]} 5. Nc3 {[%clk 0:02:55]}  Nc6 {[%clk 0:03:02]} 6. Nxc6 {[%clk 0:02:42]}  bxc6 {[%clk 0:03:03]} 7. Be3 {[%clk 0:02:42]}  Ng4 {[%clk 0:02:53]} 8. Qd2 {[%clk 0:02:38]}  Nxe3 {[%clk 0:02:49]} 9. Qxe3 {[%clk 0:02:38]}  Qb6 {[%clk 0:02:49]} 10. Qxb6 {[%clk 0:02:37]}  axb6 {[%clk 0:02:50]} 11. a3 {[%clk 0:02:36]}  g6 {[%clk 0:02:46]} 12. Bc4 {[%clk 0:02:35]}  Bg7 {[%clk 0:02:45]} 13. O-O {[%clk 0:02:29]}  O-O {[%clk 0:02:23]} 14. Rfe1 {[%clk 0:02:22]}  Ra5 {[%clk 0:02:13]} 15. Nd1 {[%clk 0:02:08]}  b5 {[%clk 0:02:05]} 16. Bb3 {[%clk 0:02:00]}  c5 {[%clk 0:01:50]} 17. Bd5 {[%clk 0:01:49]}  Bd7 {[%clk 0:01:34]} 18. c3 {[%clk 0:01:42]}  e6 {[%clk 0:01:31]} 19. Bb3 {[%clk 0:01:33]}  Rb8 {[%clk 0:01:27]} 20. Ne3 {[%clk 0:01:24]}  Kf8 {[%clk 0:01:24]} 21. Red1 {[%clk 0:01:20]}  Ke7 {[%clk 0:01:24]} 22. Bc2 {[%clk 0:01:19]}  Ra7 {[%clk 0:01:15]} 23. b4 {[%clk 0:01:18]}  Bxc3 {[%clk 0:01:09]} 24. bxc5 {[%clk 0:01:10]}  dxc5 {[%clk 0:01:04]} 25. Ra2 {[%clk 0:01:07]}  b4 {[%clk 0:01:00]} 26. Bb3 {[%clk 0:00:50]}  Rxa3 {[%clk 0:00:59]} 27. Rxa3 {[%clk 0:00:45]}  bxa3 {[%clk 0:01:00]} 28. Bc4 {[%clk 0:00:35]}  Bd4 {[%clk 0:00:50]} 29. Nc2 {[%clk 0:00:34]}  Ra8 {[%clk 0:00:43]} 30. Ba2 {[%clk 0:00:30]}  Ba4 {[%clk 0:00:41]} 31. Rd2 {[%clk 0:00:30]}  Bxc2 {[%clk 0:00:33]} 32. Rxc2 {[%clk 0:00:30]}  Rb8 {[%clk 0:00:30]} 33. Kf1 {[%clk 0:00:23]}  g5 {[%clk 0:00:29]} 34. f3 {[%clk 0:00:22]}  h5 {[%clk 0:00:26]} 35. Ke2 {[%clk 0:00:21]}  Kf6 {[%clk 0:00:26]} 36. Kd3 {[%clk 0:00:20]}  Ke5 {[%clk 0:00:26]} 37. g3 {[%clk 0:00:19]}  h4 {[%clk 0:00:23]} 38. Bc4 {[%clk 0:00:13]}  Rb2 {[%clk 0:00:20]} 39. Rxb2 {[%clk 0:00:12]}  axb2 {[%clk 0:00:20]} 40. Ba2 {[%clk 0:00:12]}  hxg3 {[%clk 0:00:18]} 41. hxg3 {[%clk 0:00:13]}  Bf2 {[%clk 0:00:18]} 42. g4 {[%clk 0:00:12]}  Kf4 {[%clk 0:00:18]} 43. Ke2 {[%clk 0:00:12]}  Bd4 {[%clk 0:00:18]} 44. Bb1 {[%clk 0:00:11]}  c4 {[%clk 0:00:18]} 45. Bc2 {[%clk 0:00:11]}  c3 {[%clk 0:00:18]} 46. Bb1 {[%clk 0:00:12]}  Be5 {[%clk 0:00:18]} 47. Bc2 {[%clk 0:00:12]}  Bd4 {[%clk 0:00:18]} 48. Bb1 {[%clk 0:00:13]}  Ke5 {[%clk 0:00:19]} 49. Bc2 {[%clk 0:00:13]}  Kd6 {[%clk 0:00:19]} 50. Bb1 {[%clk 0:00:13]}  Kc5 {[%clk 0:00:20]} 51. Kd3 {[%clk 0:00:10]}  Be5 {[%clk 0:00:19]} 52. Ba2 {[%clk 0:00:08]}  Kb4 {[%clk 0:00:19]} 53. Kc2 {[%clk 0:00:05]}  Kc5 {[%clk 0:00:18]} 54. Bb1 {[%clk 0:00:03]}  Kd4 {[%clk 0:00:18]} 0-1


[Site "https://www.chess.com"]

[Event "Titled Tuesday Blitz March 15 Early 2022"]
[White "Perez Gormaz, Matias"]
[Black "Dushyant Sharma"]
[WhiteFideId "3406342"]
[BlackFideId "25065130"]
[WhiteElo "2327"]
[BlackElo "2105"]
[Result "1-0"]
[Round "05"]
[TimeControl "180+1"]
[Date "2022.03.15"]
[WhiteClock "0:00:39"]
[BlackClock "0:00:37"]

1. e4 {[%clk 0:02:59]}  d5 {[%clk 0:03:00]} 2. exd5 {[%clk 0:02:59]}  Nf6 {[%clk 0:03:01]} 3. d4 {[%clk 0:02:58]}  Bg4 {[%clk 0:03:01]} 4. Be2 {[%clk 0:02:58]}  Bxe2 {[%clk 0:03:01]} 5. Qxe2 {[%clk 0:02:59]}  Qxd5 {[%clk 0:03:02]} 6. Nf3 {[%clk 0:02:58]}  e6 {[%clk 0:03:02]} 7. O-O {[%clk 0:02:57]}  Nc6 {[%clk 0:03:02]} 8. Rd1 {[%clk 0:02:47]}  O-O-O {[%clk 0:03:00]} 9. c4 {[%clk 0:02:47]}  Qh5 {[%clk 0:02:59]} 10. Nc3 {[%clk 0:02:44]}  Bd6 {[%clk 0:02:58]} 11. c5 {[%clk 0:02:18]}  Be7 {[%clk 0:02:31]} 12. Bf4 {[%clk 0:02:19]}  Nd5 {[%clk 0:02:29]} 13. Bg3 {[%clk 0:02:17]}  g5 {[%clk 0:02:24]} 14. Rac1 {[%clk 0:02:08]}  Nf4 {[%clk 0:02:17]} 15. Qe3 {[%clk 0:02:01]}  Rhg8 {[%clk 0:02:02]} 16. a3 {[%clk 0:01:49]}  Nd5 {[%clk 0:01:43]} 17. Qe4 {[%clk 0:01:41]}  Rg6 {[%clk 0:01:32]} 18. Ne5 {[%clk 0:01:31]}  Nxe5 {[%clk 0:01:25]} 19. Qxe5 {[%clk 0:01:27]}  Bf6 {[%clk 0:01:19]} 20. Qe4 {[%clk 0:01:19]}  g4 {[%clk 0:01:09]} 21. c6 {[%clk 0:01:12]}  Qf5 {[%clk 0:01:05]} 22. cxb7+ {[%clk 0:01:09]}  Kb8 {[%clk 0:01:03]} 23. Qe2 {[%clk 0:01:09]}  Nf4 {[%clk 0:00:59]} 24. Qc4 {[%clk 0:01:02]}  Rd7 {[%clk 0:00:49]} 25. Nb5 {[%clk 0:00:55]}  Bd8 {[%clk 0:00:46]} 26. Qa4 {[%clk 0:00:38]}  Ne2+ {[%clk 0:00:38]} 27. Kf1 {[%clk 0:00:38]}  Nxg3+ {[%clk 0:00:37]} 28. hxg3 {[%clk 0:00:39]} 1-0


[Site "https://www.chess.com"]

[Event "Titled Tuesday Blitz March 15 Early 2022"]
[White "Postny, Evgeny"]
[Black "Jumabayev, Rinat"]
[WhiteFideId "2804344"]
[BlackFideId "13702661"]
[WhiteElo "2483"]
[BlackElo "2561"]
[Result "1-0"]
[Round "05"]
[TimeControl "180+1"]
[Date "2022.03.15"]
[WhiteClock "0:00:28"]
[BlackClock "0:00:02"]

1. Nf3 {[%clk 0:03:00]}  Nf6 {[%clk 0:02:57]} 2. c4 {[%clk 0:03:01]}  e6 {[%clk 0:02:56]} 3. g3 {[%clk 0:03:01]}  d5 {[%clk 0:02:56]} 4. Bg2 {[%clk 0:03:01]}  d4 {[%clk 0:02:55]} 5. O-O {[%clk 0:03:01]}  c5 {[%clk 0:02:56]} 6. d3 {[%clk 0:02:59]}  Nc6 {[%clk 0:02:56]} 7. Na3 {[%clk 0:02:54]}  Bd6 {[%clk 0:02:44]} 8. Bg5 {[%clk 0:02:52]}  h6 {[%clk 0:02:43]} 9. Bxf6 {[%clk 0:02:52]}  Qxf6 {[%clk 0:02:44]} 10. Nd2 {[%clk 0:02:53]}  Qd8 {[%clk 0:02:44]} 11. Nc2 {[%clk 0:02:50]}  O-O {[%clk 0:02:40]} 12. a3 {[%clk 0:02:46]}  a5 {[%clk 0:02:39]} 13. b3 {[%clk 0:02:47]}  Be7 {[%clk 0:02:24]} 14. Rb1 {[%clk 0:02:39]}  e5 {[%clk 0:02:20]} 15. Bd5 {[%clk 0:02:36]}  Kh8 {[%clk 0:02:07]} 16. e3 {[%clk 0:02:33]}  dxe3 {[%clk 0:02:03]} 17. fxe3 {[%clk 0:02:29]}  f5 {[%clk 0:02:03]} 18. Qh5 {[%clk 0:02:20]}  Kh7 {[%clk 0:01:58]} 19. Rf2 {[%clk 0:02:06]}  Bf6 {[%clk 0:01:48]} 20. Qe2 {[%clk 0:01:46]}  Ne7 {[%clk 0:01:39]} 21. Bg2 {[%clk 0:01:46]}  Ra6 {[%clk 0:01:39]} 22. Rbf1 {[%clk 0:01:41]}  Rd6 {[%clk 0:01:36]} 23. Ne1 {[%clk 0:01:42]}  e4 {[%clk 0:01:22]} 24. dxe4 {[%clk 0:01:25]}  Bc3 {[%clk 0:01:15]} 25. Nef3 {[%clk 0:01:19]}  Nc6 {[%clk 0:01:03]} 26. exf5 {[%clk 0:01:11]}  Bxf5 {[%clk 0:00:58]} 27. Ne4 {[%clk 0:00:47]}  Bxe4 {[%clk 0:00:06]} 28. Ng5+ {[%clk 0:00:47]}  hxg5 {[%clk 0:00:04]} 29. Bxe4+ {[%clk 0:00:45]}  Kg8 {[%clk 0:00:03]} 30. Rxf8+ {[%clk 0:00:44]}  Qxf8 {[%clk 0:00:03]} 31. Bh7+ {[%clk 0:00:39]}  Kxh7 {[%clk 0:00:04]} 32. Rxf8 {[%clk 0:00:40]}  Ne5 {[%clk 0:00:04]} 33. Qc2+ {[%clk 0:00:37]}  Rd3 {[%clk 0:00:02]} 34. Rd8 {[%clk 0:00:28]} 1-0


[Site "https://www.chess.com"]

[Event "Titled Tuesday Blitz March 15 Early 2022"]
[White "Pourkashiyan, Atousa"]
[Black "Wagh Suyog"]
[WhiteFideId "12502014"]
[BlackFideId "25071688"]
[WhiteElo "2247"]
[BlackElo "2181"]
[Result "0-1"]
[Round "05"]
[TimeControl "180+1"]
[Date "2022.03.15"]
[WhiteClock "0:00:01"]
[BlackClock "0:00:18"]

1. e4 {[%clk 0:01:43]}  c5 {[%clk 0:02:54]} 2. Nf3 {[%clk 0:01:43]}  Nc6 {[%clk 0:02:54]} 3. d4 {[%clk 0:01:44]}  cxd4 {[%clk 0:02:55]} 4. Nxd4 {[%clk 0:01:45]}  Nf6 {[%clk 0:02:55]} 5. Nc3 {[%clk 0:01:45]}  d6 {[%clk 0:02:56]} 6. Be2 {[%clk 0:01:45]}  e6 {[%clk 0:02:56]} 7. O-O {[%clk 0:01:45]}  Be7 {[%clk 0:02:56]} 8. Be3 {[%clk 0:01:45]}  O-O {[%clk 0:02:56]} 9. f4 {[%clk 0:01:46]}  a6 {[%clk 0:02:57]} 10. a4 {[%clk 0:01:46]}  Qc7 {[%clk 0:02:57]} 11. Kh1 {[%clk 0:01:45]}  Bd7 {[%clk 0:02:57]} 12. Qe1 {[%clk 0:01:45]}  Rac8 {[%clk 0:02:58]} 13. Qg3 {[%clk 0:01:45]}  Na5 {[%clk 0:02:56]} 14. Bd3 {[%clk 0:01:41]}  Nc4 {[%clk 0:02:53]} 15. Bc1 {[%clk 0:01:37]}  Qb6 {[%clk 0:02:45]} 16. Nb3 {[%clk 0:01:35]}  e5 {[%clk 0:02:23]} 17. f5 {[%clk 0:01:33]}  Qc7 {[%clk 0:02:15]} 18. a5 {[%clk 0:01:30]}  Rfd8 {[%clk 0:02:07]} 19. Bg5 {[%clk 0:01:28]}  Nh5 {[%clk 0:01:37]} 20. Qh4 {[%clk 0:01:28]}  Nf6 {[%clk 0:01:37]} 21. Qg3 {[%clk 0:01:22]}  Rf8 {[%clk 0:01:30]} 22. Bh6 {[%clk 0:00:44]}  Nh5 {[%clk 0:01:15]} 23. Qg4 {[%clk 0:00:44]}  g6 {[%clk 0:01:13]} 24. Nd5 {[%clk 0:00:37]}  Qd8 {[%clk 0:01:10]} 25. Bxf8 {[%clk 0:00:29]}  Bxf8 {[%clk 0:01:10]} 26. Rab1 {[%clk 0:00:13]}  Bh6 {[%clk 0:00:59]} 27. Qf3 {[%clk 0:00:10]}  Qe8 {[%clk 0:00:34]} 28. fxg6 {[%clk 0:00:09]}  hxg6 {[%clk 0:00:35]} 29. Nf6+ {[%clk 0:00:09]}  Nxf6 {[%clk 0:00:36]} 30. Qxf6 {[%clk 0:00:09]}  Be6 {[%clk 0:00:36]} 31. Bxc4 {[%clk 0:00:09]}  Rxc4 {[%clk 0:00:35]} 32. Rfe1 {[%clk 0:00:06]}  Rxc2 {[%clk 0:00:34]} 33. Rbd1 {[%clk 0:00:04]}  Bg7 {[%clk 0:00:27]} 34. Qf3 {[%clk 0:00:03]}  Rxb2 {[%clk 0:00:24]} 35. Nc1 {[%clk 0:00:02]}  Qe7 {[%clk 0:00:20]} 36. Nd3 {[%clk 0:00:02]}  Rb3 {[%clk 0:00:20]} 37. Rb1 {[%clk 0:00:02]}  Rc3 {[%clk 0:00:18]} 38. Nb4 {[%clk 0:00:01]}  Rxf3 {[%clk 0:00:18]} 0-1


[Site "https://www.chess.com"]

[Event "Titled Tuesday Blitz March 15 Early 2022"]
[White "Pranav Anand"]
[Black "Van Foreest, Jorden"]
[WhiteFideId "46626786"]
[BlackFideId "1039784"]
[WhiteElo "2784"]
[BlackElo "2915"]
[Result "0-1"]
[Round "05"]
[TimeControl "180+1"]
[Date "2022.03.15"]
[WhiteClock "0:00:20"]
[BlackClock "0:00:28"]

1. Nf3 {[%clk 0:03:00]}  d5 {[%clk 0:02:58]} 2. g3 {[%clk 0:03:01]}  Nd7 {[%clk 0:02:56]} 3. d4 {[%clk 0:03:00]}  Nb6 {[%clk 0:02:56]} 4. a4 {[%clk 0:02:59]}  a5 {[%clk 0:02:54]} 5. Bg2 {[%clk 0:02:59]}  Bf5 {[%clk 0:02:53]} 6. b3 {[%clk 0:02:56]}  e6 {[%clk 0:02:51]} 7. O-O {[%clk 0:02:55]}  Be7 {[%clk 0:02:49]} 8. Ba3 {[%clk 0:02:55]}  Bxa3 {[%clk 0:02:46]} 9. Nxa3 {[%clk 0:02:56]}  Nf6 {[%clk 0:02:45]} 10. c4 {[%clk 0:02:55]}  O-O {[%clk 0:02:40]} 11. e3 {[%clk 0:02:53]}  h6 {[%clk 0:02:37]} 12. Qe2 {[%clk 0:02:49]}  Qe7 {[%clk 0:02:34]} 13. c5 {[%clk 0:02:33]}  Nbd7 {[%clk 0:02:28]} 14. Nb5 {[%clk 0:02:33]}  Nb8 {[%clk 0:02:28]} 15. Ne5 {[%clk 0:02:31]}  Na6 {[%clk 0:02:26]} 16. Rad1 {[%clk 0:02:30]}  Nb4 {[%clk 0:02:26]} 17. f3 {[%clk 0:02:21]}  Bh7 {[%clk 0:02:26]} 18. e4 {[%clk 0:02:21]}  Rad8 {[%clk 0:02:24]} 19. Kh1 {[%clk 0:02:20]}  c6 {[%clk 0:02:15]} 20. Nd6 {[%clk 0:02:20]}  Ne8 {[%clk 0:02:15]} 21. Nxe8 {[%clk 0:02:18]}  Rfxe8 {[%clk 0:02:15]} 22. Rd2 {[%clk 0:02:14]}  f6 {[%clk 0:02:06]} 23. Ng4 {[%clk 0:02:12]}  e5 {[%clk 0:02:03]} 24. exd5 {[%clk 0:02:05]}  Rxd5 {[%clk 0:01:40]} 25. Re1 {[%clk 0:01:51]}  Red8 {[%clk 0:01:32]} 26. f4 {[%clk 0:01:42]}  Rxd4 {[%clk 0:01:26]} 27. Rxd4 {[%clk 0:01:40]}  Rxd4 {[%clk 0:01:27]} 28. fxe5 {[%clk 0:01:40]}  Nd3 {[%clk 0:01:22]} 29. Rd1 {[%clk 0:01:29]}  h5 {[%clk 0:01:05]} 30. Ne3 {[%clk 0:00:35]}  Qxe5 {[%clk 0:01:05]} 31. Rf1 {[%clk 0:00:36]}  Be4 {[%clk 0:01:03]} 32. Nc4 {[%clk 0:00:29]}  Bxg2+ {[%clk 0:00:54]} 33. Qxg2 {[%clk 0:00:30]}  Qxc5 {[%clk 0:00:54]} 34. Qh3 {[%clk 0:00:28]}  Qd5+ {[%clk 0:00:54]} 35. Kg1 {[%clk 0:00:29]}  Re4 {[%clk 0:00:44]} 36. Qc8+ {[%clk 0:00:20]}  Kh7 {[%clk 0:00:44]} 37. Qf5+ {[%clk 0:00:20]}  Qxf5 {[%clk 0:00:44]} 38. Rxf5 {[%clk 0:00:21]}  Ne5 {[%clk 0:00:42]} 39. Nxa5 {[%clk 0:00:19]}  Kg6 {[%clk 0:00:37]} 40. Rf4 {[%clk 0:00:17]}  Re1+ {[%clk 0:00:31]} 41. Kg2 {[%clk 0:00:18]}  Rb1 {[%clk 0:00:32]} 42. Nxb7 {[%clk 0:00:17]}  Rxb3 {[%clk 0:00:31]} 43. Nc5 {[%clk 0:00:18]}  Rc3 {[%clk 0:00:30]} 44. Ne6 {[%clk 0:00:17]}  Ra3 {[%clk 0:00:28]} 45. Rb4 {[%clk 0:00:17]}  Ra2+ {[%clk 0:00:28]} 46. Kg1 {[%clk 0:00:17]}  Nf3+ {[%clk 0:00:27]} 47. Kf1 {[%clk 0:00:18]}  Nxh2+ {[%clk 0:00:28]} 48. Ke1 {[%clk 0:00:19]}  Nf3+ {[%clk 0:00:28]} 49. Kd1 {[%clk 0:00:19]}  Ne5 {[%clk 0:00:21]} 50. Nf4+ {[%clk 0:00:15]}  Kg5 {[%clk 0:00:20]} 51. Ne6+ {[%clk 0:00:16]}  Kh6 {[%clk 0:00:19]} 52. Kc1 {[%clk 0:00:15]}  Nd3+ {[%clk 0:00:19]} 53. Kb1 {[%clk 0:00:15]}  Nxb4 {[%clk 0:00:20]} 54. Nc5 {[%clk 0:00:15]}  Ra3 {[%clk 0:00:20]} 55. Kb2 {[%clk 0:00:14]}  Rxg3 {[%clk 0:00:20]} 56. a5 {[%clk 0:00:14]}  Nd3+ {[%clk 0:00:21]} 57. Kc3 {[%clk 0:00:14]}  Nxc5+ {[%clk 0:00:21]} 58. Kb4 {[%clk 0:00:15]}  Na6+ {[%clk 0:00:22]} 59. Kc4 {[%clk 0:00:15]}  Rg4+ {[%clk 0:00:23]} 60. Kb3 {[%clk 0:00:15]}  Rb4+ {[%clk 0:00:24]} 61. Ka3 {[%clk 0:00:15]}  Rb5 {[%clk 0:00:25]} 62. Ka4 {[%clk 0:00:16]}  h4 {[%clk 0:00:25]} 63. Ka3 {[%clk 0:00:17]}  h3 {[%clk 0:00:26]} 64. Ka4 {[%clk 0:00:18]}  h2 {[%clk 0:00:27]} 65. Ka3 {[%clk 0:00:19]}  h1=Q {[%clk 0:00:28]} 66. Ka4 {[%clk 0:00:20]}  Qa1# {[%clk 0:00:28]} 0-1


[Site "https://www.chess.com"]